bitfinex-derivatives/quotes_SOLF0:USTF0_20250719
["timestamp","ask_amount","ask_price","bid_price","bid_amount"]
[1752962435874,3.23,175.88,175.87,3.28]
[1752962446483,3.23,175.88,175.86,0.03773585]
[1752962446788,2.44732317,175.87,175.82,3.28]
[1752962446984,3.23,175.84,175.82,3.28]
[1752962449790,6.37654175,175.94,175.78,2.44732317]
[1752962449984,3.23,175.87,175.78,2.44732317]
[1752962450380,3.23,175.87,175.79,3.1]
[1752962450786,3.23,175.87,175.82,3.1]
[1752962452092,3.11,175.86,175.8,5.6853]
[1752962452294,3.11,175.86,175.83,3.1]
[1752962453096,3.11,175.85,175.83,3.1]
[1752962454591,5.6841,175.84,175.78,5.6859]
[1752962454893,3.11,175.83,175.79,3.1]
[1752962455695,3.11,175.81,175.78,3.1]
[1752962456099,3.11,175.81,175.76,5.6866]
[1752962456292,3.11,175.81,175.77,3.1]
[1752962457890,5.6851,175.81,175.77,3.1]
[1752962458094,3.11,175.8,175.77,3.1]
[1752962458486,3.11,175.8,175.76,5.6866]
[1752962458688,3.11,175.8,175.78,3.1]
[1752962460494,2.44732317,175.82,175.78,3.1]
[1752962460690,3.11,175.81,175.79,3.1]
[1752962460998,3.11,175.8,175.74,2.44732317]
[1752962461198,3.11,175.8,175.77,5.6863]
[1752962461399,3.11,175.79,175.78,3.1]
[1752962463901,3.11,175.79,175.78,8.7861]
[1752962464101,3.11,175.79,175.78,3.1]
[1752962466297,2.44732317,175.83,175.78,3.1]
[1752962466494,3.11,175.8,175.78,3.1]
[1752962467502,3.11,175.8,175.79,5.6857]
[1752962467703,3.11,175.8,175.79,8.7857]
[1752962468699,3.11,175.83,175.74,2.44732317]
[1752962468901,3.11,175.84,175.77,3.1]
[1752962469501,3.11,175.84,175.76,2.44732317]
[1752962469502,5.55732317,175.86,175.78,2.44732317]
[1752962469705,5.55732317,175.86,175.79,3.1]
[1752962469906,3.11,175.85,175.79,3.1]
[1752962470810,3.11,175.85,175.83,5.6842]
[1752962471009,3.11,175.85,175.84,3.1]
[1752962474405,5.6827,175.89,175.84,8.7841]
[1752962474611,5.6827,175.89,175.84,3.1]
[1752962474612,3.11,175.87,175.84,3.1]
[1752962474810,3.11,175.86,175.84,3.1]
[1752962475010,3.11,175.86,175.85,5.6836]
[1752962475211,3.11,175.88,175.85,3.1]
[1752962475508,3.11,175.87,175.85,3.1]
[1752962476308,3.11,175.87,175.86,5.6833]
[1752962476511,3.11,175.87,175.86,8.7833]
[1752962478215,3.11,175.87,175.86,3.1]
[1752962480114,3.11,175.88,175.86,3.1]
[1752962481112,3.24,175.87,175.86,3.1]
[1752962485021,3.24,175.87,175.86,8.7835]
[1752962486321,3.24,175.87,175.86,3.1]
[1752962488516,3.24,175.87,175.86,8.7835]
[1752962490118,3.24,175.87,175.86,3.1]
[1752962491116,3.24,175.87,175.86,8.7835]
[1752962493817,3.24,175.87,175.86,3.1]
[1752962494026,3.24,175.87,175.8,3.18]
[1752962494423,5.6837,175.86,175.84,3.18]
[1752962494716,3.24,175.85,175.84,3.18]
[1752962495922,3.24,175.85,175.81,8.8649]
[1752962496524,3.24,175.83,175.81,3.18]
[1752962496721,3.24,175.83,175.76,2.44732317]
[1752962496924,3.24,175.83,175.82,3.18]
[1752962497116,3.24,175.83,175.75,2.44732317]
[1752962497317,3.24,175.83,175.76,3.18]
[1752962498526,8.9246,175.83,175.79,5.6856]
[1752962498723,5.6846,175.83,175.8,3.18]
[1752962499022,3.24,175.81,175.8,3.18]
[1752962499223,3.24,175.81,175.8,8.8654]
[1752962500525,3.24,175.81,175.8,3.18]
[1752962502823,3.24,175.81,175.79,5.6857]
[1752962503023,3.24,175.81,175.79,8.8657]
[1752962503826,3.24,175.81,175.79,3.18]
[1752962504625,3.24,175.81,175.79,8.8657]
[1752962505726,3.24,175.81,175.79,3.18]
[1752962505925,3.24,175.81,175.78,5.6859]
[1752962506127,3.24,175.81,175.8,3.18]
[1752962507238,0.0368602,175.82,175.8,3.18]
[1752962507826,0.0368602,175.82,175.81,5.6851]
[1752962508022,3.24,175.84,175.81,3.18]
[1752962508227,3.24,175.83,175.81,3.18]
[1752962508929,3.24,175.82,175.81,3.18]
[1752962509831,3.24,175.82,175.81,8.865]
[1752962510129,3.24,175.82,175.81,3.18]
[1752962512137,3.24,175.84,175.82,3.34]
[1752962513832,3.24,175.84,175.82,9.0246]
[1752962514036,3.24,175.84,175.83,3.34]
[1752962520833,3.24,175.84,175.8,3.34]
[1752962521033,3.24,175.82,175.8,3.34]
[1752962521838,3.24,175.81,175.8,3.34]
[1752962522934,3.24,175.8,175.79,3.37624149]
[1752962530056,3.24,175.8,175.79,0.03624149]
[1752962530448,3.24,175.8,175.79,3.37624149]
[1752962530652,3.24,175.8,175.79,0.03624149]
[1752962530951,5.7009185,175.8,175.75,3.34]
[1752962531256,3.24,175.79,175.75,3.34]
[1752962531553,3.24,175.79,175.76,3.34]
[1752962531554,3.24,175.78,175.76,3.34]
[1752962531761,3.24,175.78,175.77,3.34]
[1752962535052,8.9261,175.78,175.72,3.34]
[1752962535256,5.68732317,175.77,175.72,3.34]
[1752962535558,5.6873,175.75,175.72,3.34]
[1752962535751,3.24,175.74,175.72,3.34]
[1752962536250,3.24,175.74,175.72,9.0278]
[1752962536653,3.24,175.72,175.68,3.34]
[1752962536958,3.24,175.7,175.6,384.68732317]
[1752962537154,3.24,175.68,175.63,5.6909]
[1752962537350,3.24,175.66,175.61,107.6]
[1752962537554,3.24,175.66,175.62,3.34]
[1752962537750,3.24,175.66,175.61,104.26]
[1752962537956,3.24,175.7,175.62,3.34]
[1752962538257,3.24,175.72,175.66,3.34]
[1752962538454,3.24,175.72,175.67,3.34]
[1752962538648,3.24,175.72,175.69,5.6887]
[1752962539063,2.44732317,175.71,175.67,3.34]
[1752962539247,3.24,175.67,175.65,3.34]
[1752962539658,3.24,175.67,175.64,3.34]
[1752962539853,3.24,175.66,175.64,3.34]
[1752962540057,0.0363725,175.68,175.66,3.34]
[1752962540563,3.22,175.72,175.66,3.31]
[1752962540748,3.22,175.7,175.63,3.31]
[1752962541154,3.22,175.7,175.65,3.31]
[1752962541459,5.6885,175.71,175.66,5.6898]
[1752962541753,3.22,175.68,175.63,3.31]
[1752962542358,3.22,175.66,175.61,3.31]
[1752962542552,3.22,175.64,175.61,3.31]
[1752962542757,3.22,175.64,175.62,3.31]
[1752962543058,3.22,175.63,175.62,3.31]
[1752962543257,2.44732317,175.67,175.62,3.31]
[1752962543460,3.22,175.7,175.63,2.44732317]
[1752962543659,3.22,175.7,175.65,2.44732317]
[1752962543855,3.22,175.7,175.68,5.6889]
[1752962544061,3.22,175.7,175.65,106.98732317]
[1752962544062,3.22,175.7,175.69,3.31]
[1752962544356,3.22,175.7,175.64,3.31]
[1752962544656,3.22,175.68,175.64,3.31]
[1752962544963,3.22,175.64,175.61,3.31]
[1752962545662,3.22,175.64,175.62,3.31]
[1752962545959,2.44732317,175.69,175.6,2.44732317]
[1752962546161,3.22,175.69,175.64,2.44732317]
[1752962546355,3.22,175.69,175.65,3.31]
[1752962546556,3.22,175.68,175.65,3.31]
[1752962547053,3.22,175.69,175.62,2.44732317]
[1752962547253,3.22,175.69,175.61,1.92472571]
[1752962547459,0.03932672,175.68,175.66,3.31]
[1752962547765,3.22,175.67,175.66,3.31]
[1752962547961,3.22,175.67,175.64,3.31]
[1752962548258,3.22,175.66,175.65,3.31]
[1752962548465,3.22,175.64,175.61,3.31]
[1752962548766,0.03932672,175.68,175.62,3.31]
[1752962549059,3.22,175.69,175.62,3.31]
[1752962549257,0.04242663,175.67,175.62,3.31]
[1752962549866,3.26242663,175.67,175.62,3.31]
[1752962550961,0.04242663,175.67,175.62,3.31]
[1752962551560,0.04242663,175.67,175.66,5.6898]
[1752962551766,0.04242663,175.67,175.66,8.9998]
[1752962552266,0.04242663,175.67,175.66,3.31]
[1752962552267,3.26242663,175.67,175.66,3.31]
[1752962552469,0.04242663,175.67,175.66,3.31]
[1752962552864,0.04242663,175.67,175.66,8.9998]
[1752962556067,3.22,175.72,175.66,3.31]
[1752962556563,3.22,175.72,175.69,5.6887]
[1752962556762,3.22,175.72,175.69,8.9987]
[1752962557156,3.22,175.72,175.69,3.31]
[1752962557367,3.22,175.72,175.69,3.34985077]
[1752962557568,3.22,175.72,175.7,3.31]
[1752962558073,3.22,175.8,175.71,3.31]
[1752962558368,3.22,175.77,175.71,3.31]
[1752962558869,3.22,175.78,175.73,3.31]
[1752962559067,384.16472571,175.86,175.74,1.92472571]
[1752962559068,3.22,175.79,175.74,1.92472571]
[1752962559372,110.45379167,175.89,175.79,8.9954]
[1752962559373,3.22,175.8,175.79,8.9954]
[1752962559565,3.22,175.8,175.79,3.31]
[1752962560270,3.22,175.79,175.78,8.9958]
[1752962560971,3.22,175.79,175.68,107.32472571]
[1752962560972,3.22,175.79,175.77,5.728932]
[1752962561167,3.22,175.79,175.77,0.042832]
[1752962561464,3.22,175.77,175.72,8.9976]
[1752962561671,3.22,175.75,175.68,3.31]
[1752962561864,3.22,175.75,175.74,5.6872]
[1752962562070,11.4878018,175.86,175.74,5.6872]
[1752962562071,3.22,175.78,175.74,3.31]
[1752962562264,3.22,175.8,175.74,3.31]
[1752962562463,3.22,175.76,175.74,3.31]
[1752962562670,3.22,175.76,175.73,3.31]
[1752962562864,3.22,175.76,175.75,3.35286612]
[1752962563173,3.22,175.77,175.76,3.31]
[1752962563376,3.22,175.76,175.75,3.31]
[1752962563871,1.92472571,175.8,175.75,0.04343698]
[1752962564075,1.92472571,175.76,175.75,0.04343698]
[1752962564262,7.61132571,175.76,175.75,0.04343698]
[1752962564466,7.61132571,175.76,175.71,3.31]
[1752962564666,3.22,175.75,175.67,1.92472571]
[1752962564862,3.22,175.77,175.74,0.04081276]
[1752962565073,3.22,175.76,175.75,3.31]
[1752962566362,3.22,175.76,175.74,5.6872]
[1752962566564,3.22,175.75,175.74,8.9972]
[1752962567170,3.22,175.75,175.74,3.31]
[1752962568877,3.22,175.75,175.74,8.9972]
[1752962569668,1.92472571,175.77,175.72,3.31]
[1752962569868,6.37654175,175.85,175.72,3.31]
[1752962569869,3.22,175.74,175.72,3.31]
[1752962570073,3.22,175.74,175.71,5.72389591]
[1752962570275,1.92472571,175.75,175.67,1.92472571]
[1752962570477,3.03,175.74,175.73,3.33]
[1752962573270,3.03,175.74,175.73,9.0175]
[1752962573473,3.03,175.76,175.73,3.33]
[1752962574172,3.03,175.75,175.73,3.36743118]
[1752962574372,3.03,175.75,175.74,3.33]
[1752962574676,3.03,175.75,175.74,9.017]
[1752962574877,3.03,175.76,175.75,3.33]
[1752962575576,3.03,175.76,175.74,3.33]
[1752962575974,3.03,175.76,175.73,9.05473118]
[1752962577179,9.56307609,175.85,175.73,0.03743118]
[1752962577180,3.03,175.74,175.73,0.03743118]
[1752962577679,3.03,175.74,175.71,3.33]
[1752962577880,3.03,175.74,175.72,0.04233584]
[1752962579281,4.95472571,175.73,175.72,0.04233584]
[1752962580270,3.03,175.73,175.72,3.37233584]
[1752962580471,3.03,175.75,175.72,3.37233584]
[1752962580681,3.03,175.74,175.73,3.33]
[1752962582584,3.03,175.74,175.73,9.0175]
[1752962582881,3.03,175.76,175.74,3.33]
[1752962583184,3.03,175.76,175.75,3.33]
[1752962583388,3.03,175.76,175.73,3.33]
[1752962583576,1.92472571,175.77,175.74,5.687]
[1752962583779,3.03,175.75,175.74,9.017]
[1752962585884,1.92472571,175.76,175.72,0.03915185]
[1752962586189,3.03,175.76,175.72,3.36915185]
[1752962586392,1.92472571,175.77,175.73,5.6872]
[1752962586592,4.95472571,175.77,175.74,3.33]
[1752962587289,3.03,175.77,175.74,3.33]
[1752962587487,3.03,175.76,175.74,3.33]
[1752962587990,3.03,175.77,175.76,5.6866]
[1752962588489,3.03,175.77,175.76,9.0166]
[1752962592287,4.95472571,175.77,175.76,3.33]
[1752962592487,3.03,175.76,175.75,0.0372487]
[1752962592788,4.95472571,175.76,175.75,0.0372487]
[1752962592988,3.84945142,175.77,175.64,3.33]
[1752962593199,3.03,175.68,175.64,3.33]
[1752962593397,3.03,175.68,175.65,3.33]
[1752962593696,3.03,175.68,175.67,3.33]
[1752962594393,3.03,175.68,175.67,9.0195]
[1752962595397,1.92472571,175.7,175.67,5.6895]
[1752962595599,3.03,175.69,175.68,9.0192]
[1752962596796,3.03,175.72,175.69,3.33]
[1752962597389,1.92472571,175.74,175.69,3.33]
[1752962597694,3.03,175.71,175.69,3.33]
[1752962597893,3.03,175.71,175.7,5.6885]
[1752962598198,3.03,175.71,175.7,9.0185]
[1752962599100,3.03,175.73,175.72,3.33]
[1752962599496,4.95472571,175.74,175.72,3.33]
[1752962599700,4.95472571,175.74,175.66,1.92472571]
[1752962599701,4.95472571,175.74,175.73,9.0175]
[1752962599899,1.92472571,175.76,175.73,9.0175]
[1752962600097,0.99026806,175.85,175.75,3.33]
[1752962600098,1.92472571,175.78,175.75,3.33]
[1752962600404,4.95472571,175.78,175.75,3.33]
[1752962600596,3.23,175.77,175.75,5.6868]
[1752962600792,3.23,175.77,175.76,3.19]
[1752962600997,3.23,175.77,175.7,1.92472571]
[1752962601308,3.23,175.77,175.72,3.19]
[1752962601507,3.23,175.76,175.72,3.19]
[1752962601708,3.23,175.76,175.74,5.687]
[1752962601909,3.23,175.76,175.75,3.19]
[1752962602399,3.23,175.78,175.75,3.19]
[1752962602603,3.23,175.77,175.76,3.19]
[1752962603909,3.23,175.77,175.76,8.8766]
[1752962605205,3.23,175.77,175.64,9.53804462]
[1752962605206,3.23,175.76,175.68,3.19]
[1752962605406,3.23,175.76,175.7,3.19]
[1752962605806,3.23,175.75,175.74,3.19]
[1752962606306,3.23,175.75,175.74,8.8772]
[1752962608500,3.23,175.76,175.75,3.19]
[1752962608706,3.23,175.76,175.75,8.8769]
[1752962611012,3.23,175.76,175.75,3.19]
[1752962615711,3.23,175.76,175.75,8.877]
[1752962615915,3.23,175.76,175.75,3.19]
[1752962616915,8.9167,175.76,175.74,5.6872]
[1752962617109,1.92472571,175.75,175.68,3.19]
[1752962617314,1.92472571,175.73,175.68,3.19]
[1752962617514,3.23,175.7,175.69,3.19]
[1752962618217,3.23,175.69,175.67,3.19]
[1752962618725,3.23,175.69,175.68,8.879]
[1752962619813,3.23,175.7,175.69,8.8789]
[1752962620211,3.23,175.7,175.69,3.19]
[1752962620416,3.23,175.7,175.67,3.19]
[1752962620822,8.9188,175.7,175.67,8.8794]
[1752962621022,3.23,175.69,175.68,3.19]
[1752962624926,3.23,175.69,175.68,8.8793]
[1752962625421,3.23,175.69,175.68,3.19]
[1752962625627,1.92472571,175.69,175.65,104.82]
[1752962625827,3.23,175.67,175.66,3.19]
[1752962626526,3.23,175.67,175.66,8.8797]
[1752962626830,3.23,175.68,175.66,3.19]
[1752962627029,3.23,175.68,175.67,5.6896]
[1752962627225,3.23,175.68,175.67,8.8796]
[1752962628829,1.92472571,175.69,175.67,8.8796]
[1752962629030,3.23,175.68,175.67,8.8796]
[1752962629329,3.23,175.68,175.67,3.19]
[1752962631626,3.23,175.68,175.67,8.8796]
[1752962632031,3.23,175.68,175.67,113.5596]
[1752962632429,3.23,175.68,175.67,107.87]
[1752962632627,3.23,175.68,175.67,3.19]
[1752962633325,3.23,175.68,175.67,107.89]
[1752962633530,3.23,175.68,175.66,5.6898]
[1752962633731,8.9193,175.68,175.67,104.7]
[1752962634430,3.15,175.66,175.63,3.24]
[1752962634630,5.07472571,175.66,175.63,107.94]
[1752962634830,3.15,175.65,175.63,107.94]
[1752962635025,3.15,175.65,175.64,3.24]
[1752962638339,3.15,175.65,175.63,104.7]
[1752962638638,3.15,175.65,175.63,107.94]
[1752962639635,3.15,175.65,175.64,3.24]
[1752962642333,8.8403,175.65,175.63,104.7]
[1752962642538,3.15,175.63,175.62,107.82]
[1752962645838,8.8409,175.63,175.62,107.82]
[1752962646036,3.15,175.63,175.62,107.82]
[1752962646931,3.15,175.63,175.6,5.6918]
[1752962647130,3.15,175.61,175.53,3.24]
[1752962647335,5.07472571,175.55,175.48,231.08473891]
[1752962647540,6.35652766,175.65,175.5,3.24]
[1752962647541,5.07472571,175.54,175.5,3.24]
[1752962647739,1.92472571,175.54,175.5,3.24]
[1752962647942,3.15,175.51,175.49,3.24]
[1752962648239,3.15,175.51,175.5,107.84]
[1752962648634,1.92472571,175.52,175.5,113.5351]
[1752962648831,5.07472571,175.52,175.51,3.24]
[1752962649234,3.15,175.52,175.51,104.6]
[1752962649432,5.07472571,175.52,175.51,104.6]
[1752962650341,5.07472571,175.52,175.51,107.84]
[1752962650844,5.07472571,175.54,175.52,3.24]
[1752962651043,9.49963178,175.64,175.52,3.24]
[1752962651044,3.15,175.55,175.52,3.24]
[1752962651341,3.15,175.55,175.52,5.6943]
[1752962651541,3.15,175.55,175.54,3.24]
[1752962654247,3.15,175.55,175.52,5.6945]
[1752962654448,1.92472571,175.54,175.52,3.24]
[1752962654647,1.92472571,175.54,175.53,104.64]
[1752962654648,5.07472571,175.54,175.53,104.64]
[1752962657343,3.15,175.53,175.51,8.9347]
[1752962658241,3.15,175.53,175.51,3.24]
[1752962658447,1.92472571,175.52,175.51,3.24]
[1752962658650,5.07472571,175.52,175.51,3.24]
[1752962659343,1.92472571,175.52,175.5,110.295]
[1752962659638,3.15,175.51,175.5,113.535]
[1752962660653,1.92472571,175.52,175.51,5.6948]
[1752962660840,1.92472571,175.54,175.51,8.9148]
[1752962661039,4.98472571,175.54,175.52,3.22]
[1752962661346,3.06,175.53,175.45,1.92472571]
[1752962661547,3.06,175.53,175.46,104.6]
[1752962661746,1.92472571,175.54,175.46,104.6]
[1752962661948,1.92472571,175.54,175.47,3.22]
[1752962662348,4.98472571,175.54,175.5,3.22]
[1752962662548,3.06,175.53,175.52,3.22]
[1752962663947,3.06,175.53,175.5,110.2949]
[1752962664150,3.06,175.51,175.5,107.82]
[1752962665051,3.06,175.51,175.5,104.6]
[1752962665346,1.92472571,175.52,175.42,382.58]
[1752962665551,4.98472571,175.45,175.44,3.22]
[1752962665746,4.98472571,175.47,175.43,3.22]
[1752962666744,1.92472571,175.49,175.46,5.6961]
[1752962666949,4.98472571,175.49,175.48,3.22]
[1752962667454,3.06,175.48,175.47,3.22]
[1752962668353,3.06,175.47,175.45,3.22]
[1752962668750,3.06,175.46,175.45,3.22]
[1752962670053,4.98472571,175.46,175.45,3.22]
[1752962670244,3.06,175.45,175.44,107.86]
[1752962670647,3.06,175.45,175.44,3.22]
[1752962670849,3.06,175.45,175.42,3.22]
[1752962671155,3.06,175.42,175.41,3.22]
[1752962673248,3.06,175.42,175.41,8.9181]
[1752962674255,4.98472571,175.43,175.42,8.9177]
[1752962675957,1.92472571,175.43,175.42,8.9177]
[1752962676457,4.98472571,175.43,175.42,8.9177]
[1752962681162,4.98472571,175.43,175.42,3.22]
[1752962682053,4.98472571,175.43,175.42,8.9177]
[1752962682868,3.06,175.42,175.39,107.86]
[1752962683058,3.06,175.42,175.4,3.22]
[1752962683461,3.06,175.42,175.4,8.9182]
[1752962683758,3.06,175.41,175.4,5.6982]
[1752962684163,3.06,175.41,175.4,8.9182]
[1752962684559,3.06,175.41,175.4,3.22]
[1752962684762,3.06,175.4,175.33,3.22]
[1752962684969,3.06,175.38,175.35,3.22]
[1752962685969,4.98472571,175.39,175.37,3.22]
[1752962686666,4.98472571,175.39,175.38,8.919]
[1752962688369,4.98472571,175.39,175.38,3.22]
[1752962689170,1.92472571,175.39,175.38,5.699]
[1752962689469,1.92472571,175.39,175.38,8.919]
[1752962689670,4.98472571,175.39,175.38,8.919]
[1752962692867,3.06,175.39,175.38,8.919]
[1752962693572,1.92472571,175.4,175.38,8.919]
[1752962693573,3.29,175.42,175.39,3.15]
[1752962694168,3.29,175.42,175.41,8.8479]
[1752962696471,3.29,175.42,175.41,3.15]
[1752962702974,3.29,175.42,175.41,8.8479]
[1752962703173,3.29,175.42,175.41,3.15]
[1752962704978,3.29,175.41,175.39,3.15]
[1752962705271,5.21472571,175.4,175.39,3.15]
[1752962706169,7.62322571,175.4,175.38,104.7]
[1752962706375,3.29,175.39,175.38,107.85]
[1752962707470,3.29,175.39,175.38,3.15]
[1752962707868,3.29,175.39,175.38,8.8489]
[1752962708377,3.29,175.39,175.38,3.15]
[1752962708775,3.29,175.39,175.36,110.3995]
[1752962708968,1.92472571,175.38,175.37,3.15]
[1752962709173,5.21472571,175.38,175.36,110.3995]
[1752962709480,3.29,175.37,175.36,107.85]
[1752962710677,3.29,175.36,175.31,104.7]
[1752962710875,3.29,175.34,175.33,8.8505]
[1752962712875,6.33308785,175.41,175.33,3.15]
[1752962713078,3.29,175.37,175.33,3.15]
[1752962713478,3.29,175.36,175.35,3.15]
[1752962716076,3.29,175.36,175.35,8.8499]
[1752962721386,3.29,175.36,175.35,5.6999]
[1752962721784,3.29,175.36,175.35,8.8199]
[1752962722984,3.29,175.35,175.31,3.12]
[1752962723687,3.29,175.35,175.34,3.12]
[1752962724987,3.29,175.35,175.34,8.8202]
[1752962729290,5.6986,175.4,175.34,3.12]
[1752962729493,1.92472571,175.38,175.34,3.12]
[1752962729692,3.29,175.37,175.34,3.12]
[1752962729893,1.92472571,175.38,175.35,5.6996]
[1752962730196,3.29,175.36,175.35,8.8196]
[1752962734895,1.92472571,175.39,175.31,5.04472571]
[1752962735198,3.29,175.41,175.34,3.12]
[1752962735501,3.29,175.43,175.42,3.12]
[1752962736000,3.29,175.43,175.41,3.12]
[1752962736201,1.92472571,175.45,175.42,3.12]
[1752962736395,1.92472571,175.45,175.37,3.12]
[1752962736795,3.29,175.44,175.37,3.12]
[1752962737192,3.29,175.44,175.42,3.12]
[1752962737800,3.29,175.44,175.43,3.12]
[1752962741693,3.29,175.44,175.42,3.12]
[1752962743703,3.29,175.43,175.42,3.12]
[1752962743902,3.29,175.42,175.37,3.12]
[1752962744305,6.33308785,175.48,175.37,3.12]
[1752962744306,5.21472571,175.41,175.37,3.12]
[1752962744600,3.29,175.38,175.34,3.12]
[1752962744797,1.92472571,175.39,175.34,3.12]
[1752962744798,3.29,175.37,175.34,3.12]
[1752962745001,1.92472571,175.37,175.36,3.12]
[1752962745504,5.21472571,175.37,175.36,3.12]
[1752962751612,3.29,175.37,175.36,3.12]
[1752962752508,5.24472571,175.39,175.36,3.12]
[1752962752704,1.92472571,175.39,175.36,3.12]
[1752962752902,3.32,175.41,175.36,3.12]
[1752962753409,3.32,175.41,175.36,107.8]
[1752962753709,3.32,175.41,175.39,5.6983]
[1752962753911,3.32,175.41,175.4,3.07]
[1752962757109,3.32,175.42,175.41,3.07]
[1752962757313,3.32,175.44,175.41,3.07]
[1752962757812,3.32,175.44,175.41,5.6977]
[1752962758010,3.32,175.44,175.42,3.07]
[1752962758910,6.33308785,175.5,175.42,3.07]
[1752962759111,5.90484635,175.49,175.43,3.07]
[1752962759312,2.58484635,175.48,175.43,3.07]
[1752962759505,3.32,175.49,175.47,5.6959]
[1752962759705,3.32,175.49,175.48,3.07]
[1752962760315,389.35308785,175.56,175.48,5.6957]
[1752962760506,3.32,175.51,175.49,3.07]
[1752962761116,3.32,175.5,175.48,5.6957]
[1752962761616,3.32,175.5,175.49,3.07]
[1752962762213,3.32,175.5,175.49,5.6953]
[1752962762414,3.32,175.52,175.5,3.07]
[1752962762822,3.32,175.52,175.5,5.6947]
[1752962763010,3.32,175.52,175.51,3.07]
[1752962764522,5.24472571,175.53,175.52,3.07]
[1752962764723,3.32,175.53,175.52,3.07]
[1752962765021,3.32,175.55,175.52,8.7641]
[1752962765224,3.32,175.55,175.53,3.07]
[1752962765723,3.32,175.55,175.54,3.07]
[1752962767914,3.32,175.55,175.54,8.7637]
[1752962768114,3.32,175.55,175.54,3.07]
[1752962769726,3.32,175.55,175.52,3.07]
[1752962769922,3.32,175.55,175.48,3.07]
[1752962770127,1.92472571,175.55,175.48,3.07]
[1752962770318,3.32,175.54,175.48,3.07]
[1752962770925,1.92472571,175.55,175.51,5.6944]
[1752962771117,3.32,175.53,175.52,3.07]
[1752962771925,3.32,175.53,175.52,8.7644]
[1752962773023,3.32,175.53,175.52,5.6944]
[1752962773224,3.32,175.54,175.53,5.694]
[1752962773424,3.32,175.54,175.53,8.764]
[1752962773724,5.24472571,175.55,175.54,3.07]
[1752962774523,3.32,175.55,175.54,3.07]
[1752962776330,5.24472571,175.56,175.55,3.07]
[1752962776630,3.32,175.56,175.55,3.07]
[1752962778233,3.32,175.56,175.55,8.7634]
[1752962781333,3.19,175.57,175.56,8.9031]
[1752962781636,3.19,175.59,175.56,3.21]
[1752962781828,1.92472571,175.61,175.56,3.21]
[1752962781829,3.19,175.6,175.56,3.21]
[1752962782533,1.92472571,175.62,175.56,3.21]
[1752962782729,5.11472571,175.62,175.6,5.6916]
[1752962783028,3.19,175.61,175.53,1.92472571]
[1752962783222,3.19,175.61,175.59,5.6919]